fUSD/lending_fUSD_20250503
["ID","MTS","AMOUNT","RATE_DAILY","PERIOD"]
[359740797,1746292244668,-450.0,0.00019886,2]
[359740798,1746292244677,-250.69866356,0.00019886,2]
[359740799,1746292244687,-450.0,0.00019886,2]
[359740800,1746292244696,-1677.02,0.00019886,2]
[359740801,1746292244705,-647.64,0.00019886,2]
[359740802,1746292244714,-450.0,0.00019886,2]
[359740803,1746292244723,-476.86,0.00019886,2]
[359740804,1746292244733,-1151.2,0.00019886,2]
[359740805,1746292244742,-450.0,0.00019886,2]
[359740806,1746292244752,-450.0,0.00019886,2]
[359740807,1746292244761,-450.0,0.00019886,2]
[359740808,1746292244770,-498.42,0.00019886,2]
[359740809,1746292244779,-498.13,0.00019886,2]
[359740810,1746292244788,-450.0,0.00019886,2]
[359740811,1746292244796,-450.0,0.00019886,2]
[359740812,1746292244805,-621.54,0.00019886,2]
[359740813,1746292244814,-450.0,0.00019886,2]
[359740814,1746292244823,-450.0,0.00019886,2]
[359740815,1746292244832,-450.0,0.00019886,2]
[359740816,1746292244841,-618.3,0.00019886,2]
[359740817,1746292244850,-3639.21,0.00019886,2]
[359740818,1746292244860,-450.0,0.00019886,2]
[359740819,1746292244869,-450.0,0.00019886,2]
[359740820,1746292244878,-509.82,0.00019886,2]
[359740821,1746292244887,-450.0,0.00019886,2]
[359740822,1746292244897,-450.0,0.00019886,2]
[359740823,1746292244905,-450.0,0.00019886,2]
[359740824,1746292244914,-530.41,0.00019886,2]
[359740825,1746292244923,-450.0,0.00019886,2]
[359740826,1746292244932,-1039.54,0.00019886,2]
[359740827,1746292244943,-566.68,0.00019886,2]
[359740828,1746292244951,-3599.02,0.00019886,2]
[359740829,1746292244960,-790.81,0.00019886,2]
[359740830,1746292244969,-2635.09,0.00019886,2]
[359740831,1746292244978,-965.32,0.00019886,2]
[359740832,1746292244986,-450.0,0.00019886,2]
[359740833,1746292244995,-883.04,0.00019886,2]
[359740834,1746292245004,-644.59,0.00019886,2]
[359740835,1746292245014,-450.0,0.00019886,2]
[359740836,1746292245023,-1173.13,0.00019886,2]
[359740837,1746292245032,-450.0,0.00019886,2]
[359740838,1746292245041,-450.0,0.00019886,2]
[359740839,1746292245050,-541.9,0.00019886,2]
[359740840,1746292245059,-511.88,0.00019886,2]
[359740841,1746292245068,-410.11033418,0.00019886,2]
[359740842,1746292245077,-450.0,0.00019886,2]
[359740843,1746292245087,-438.32,0.00019886,2]
[359740844,1746292245097,-553.78,0.00019886,2]
[359740845,1746292245107,-450.0,0.00019886,2]
[359740846,1746292245117,-552.33,0.00019886,2]
[359740847,1746292245127,-1828.02,0.00019886,2]
[359740848,1746292245137,-450.0,0.00019886,2]
[359740849,1746292245147,-520.99,0.00019886,2]
[359740850,1746292245156,-450.0,0.00019886,2]
[359740851,1746292245165,-353.16523101,0.00019886,2]
[359740852,1746292245174,-679.22,0.00019886,2]
[359740853,1746292245183,-450.0,0.00019886,2]
[359740854,1746292245193,-450.0,0.00019886,2]
[359740855,1746292245203,-755.59,0.00019886,2]
[359740856,1746292245212,-1778.04,0.00019886,2]
[359740857,1746292245221,-450.0,0.00019886,2]
[359740858,1746292245230,-668.18,0.00019886,2]
[359740859,1746292245239,-450.0,0.00019886,2]
[359740860,1746292245248,-450.0,0.00019886,2]
[359740861,1746292245257,-450.0,0.00019886,2]
[359740862,1746292245266,-807.23,0.00019886,2]
[359740863,1746292245275,-450.0,0.00019886,2]
[359740864,1746292245284,-450.0,0.00019886,2]
[359740865,1746292245293,-804.88,0.00019886,2]
[359740866,1746292245303,-469.999999,0.00019886,2]
[359740867,1746292245312,-450.0,0.00019886,2]
[359740868,1746292245322,-450.0,0.00019886,2]
[359740870,1746292245333,-849.36,0.00019886,2]
[359740872,1746292245343,-450.0,0.00019886,2]
[359740876,1746292245352,-450.0,0.00019886,2]
[359740878,1746292245362,-450.0,0.00019886,2]
[359740879,1746292245371,-537.91,0.00019886,2]
[359740881,1746292245381,-1666.22,0.00019886,2]
[359740883,1746292245392,-644.11,0.00019886,2]
[359740885,1746292245402,-450.0,0.00019886,2]
[359740887,1746292245411,-1011.12,0.00019886,2]
[359740888,1746292245420,-450.0,0.00019886,2]
[359740891,1746292245430,-5476.91,0.00019886,2]
[359740893,1746292245442,-3307.35,0.00019886,2]
[359740894,1746292245451,-452.75,0.00019886,2]
[359740897,1746292245461,-450.0,0.00019886,2]
[359740899,1746292245472,-450.0,0.00019886,2]
[359740901,1746292245481,-450.0,0.00019886,2]
[359740904,1746292245491,-450.0,0.00019886,2]
[359740907,1746292245501,-450.0,0.00019886,2]
[359740909,1746292245510,-450.0,0.00019886,2]
[359740911,1746292245520,-527.59,0.00019886,2]
[359740913,1746292245529,-450.0,0.00019886,2]
[359740915,1746292245539,-450.0,0.00019886,2]
[359740917,1746292245548,-6577.89,0.00019886,2]
[359740918,1746292245558,-450.0,0.00019886,2]
[359740919,1746292245567,-3878.53,0.00019886,2]
[359740920,1746292245577,-450.0,0.00019886,2]
[359740921,1746292245586,-450.0,0.00019887,2]
[359740922,1746292245595,-450.0,0.00019887,2]
[359740923,1746292245604,-450.0,0.00019887,2]
[359740924,1746292245614,-450.0,0.00019887,2]
[359740925,1746292245623,-450.0,0.00019887,2]
[359740926,1746292245633,-450.0,0.00019887,2]
[359740927,1746292245642,-486.57628982,0.00019887,2]
[359740928,1746292245651,-450.0,0.00019887,2]
[359740929,1746292245661,-618.17,0.00019887,2]
[359740930,1746292245670,-450.0,0.00019887,2]
[359740931,1746292245680,-558.87,0.00019887,2]
[359740932,1746292245689,-450.0,0.00019887,2]
[359740933,1746292245699,-506.09,0.00019887,2]
[359740934,1746292245708,-450.0,0.00019887,2]
[359740935,1746292245717,-450.0,0.00019887,2]
[359740936,1746292245727,-450.0,0.00019887,2]
[359740937,1746292245737,-972.62,0.00019887,2]
[359740938,1746292245747,-531.95,0.00019887,2]
[359740939,1746292245755,-450.0,0.00019887,2]
[359740940,1746292245764,-450.0,0.00019887,2]
[359740941,1746292245774,-647.39,0.00019887,2]
[359740942,1746292245783,-450.0,0.00019887,2]
[359740943,1746292245792,-817.55,0.00019887,2]
[359740944,1746292245801,-450.0,0.00019887,2]
[359740945,1746292245810,-450.0,0.00019887,2]
[359740946,1746292245819,-220.16788687,0.00019887,2]
[359740947,1746292245828,-472.18731909,0.00019887,2]
[359740948,1746292245837,-450.0,0.00019887,2]
[359740949,1746292245846,-450.0,0.00019887,2]
[359740950,1746292245854,-565.46,0.00019887,2]
[359740951,1746292245863,-450.0,0.00019887,2]
[359740952,1746292245872,-450.0,0.00019887,2]
[359740953,1746292245882,-450.0,0.00019887,2]
[359740954,1746292245890,-450.0,0.00019887,2]
[359740956,1746292245900,-450.0,0.00019887,2]
[359740958,1746292245909,-2323.97,0.00019887,2]
[359740960,1746292245918,-450.0,0.00019887,2]
[359740961,1746292245928,-450.0,0.00019887,2]
[359740962,1746292245939,-450.0,0.00019887,2]
[359740963,1746292245948,-250.0,0.00019887,2]
[359740965,1746292245957,-468.42063572,0.00019887,2]
[359740967,1746292245966,-450.0,0.00019887,2]
[359740970,1746292245976,-512.74,0.00019887,2]
[359740972,1746292245985,-450.0,0.00019887,2]
[359740975,1746292245995,-1102.1,0.00019887,2]
[359740978,1746292246005,-450.0,0.00019887,2]
[359740980,1746292246014,-450.0,0.00019887,2]
[359740982,1746292246023,-1164.13,0.00019887,2]
[359740983,1746292246033,-450.0,0.00019887,2]
[359740984,1746292246042,-503.37,0.00019887,2]
[359740985,1746292246051,-450.0,0.00019887,2]
[359740986,1746292246061,-450.0,0.00019887,2]
[359740988,1746292246070,-450.0,0.00019887,2]
[359740990,1746292246080,-208.37621014,0.00019888,2]
[359740991,1746292246089,-275.45795137,0.0001989,2]
[359740992,1746292246098,-150.0,0.0001989,2]
[359740994,1746292246108,-150.50631763,0.0001989,2]
[359740995,1746292246117,-500.0,0.0001989,2]
[359740996,1746292246126,-460.0,0.0001989,2]
[359740997,1746292246136,-150.0,0.0001989,2]
[359740998,1746292246145,-500.0,0.0001989,2]
[359740999,1746292246155,-150.0,0.0001989,2]
[359741000,1746292246164,-500.0,0.0001989,2]
[359741001,1746292246173,-150.0,0.0001989,2]
[359741002,1746292246182,-150.0,0.0001989,2]
[359741003,1746292246192,-150.0,0.0001989,2]
[359741004,1746292246202,-155.75221986,0.0001989,2]
[359741005,1746292246211,-500.0,0.0001989,2]
[359741006,1746292246221,-152.6145878,0.0001989,2]
[359741007,1746292246230,-152.14871149,0.0001989,2]
[359741008,1746292246240,-153.14775644,0.0001989,2]
[359741009,1746292246250,-150.0,0.0001989,2]
[359741010,1746292246260,-500.0,0.0001989,2]
[359741011,1746292246271,-150.0,0.0001989,2]
[359741012,1746292246280,-500.0,0.0001989,2]
[359741013,1746292246290,-150.0,0.0001989,2]
[359741014,1746292246300,-150.0,0.0001989,2]
[359741015,1746292246309,-150.0,0.0001989,2]
[359741016,1746292246319,-208.37621014,0.00019891,2]
[359741017,1746292246328,-208.37621014,0.00019893,2]
[359741018,1746292246337,-275.45795137,0.00019893,2]
[359741019,1746292246347,-208.37621014,0.00019895,2]
[359741020,1746292246356,-275.45795137,0.00019897,2]
[359741021,1746292246365,-208.37621014,0.00019898,2]
[359741022,1746292246375,-162.91081726,0.00019899,2]
[359741023,1746292246386,-500.0,0.000199,2]
[359741024,1746292246398,-162.91081726,0.000199,2]
[359741025,1746292246407,-1000.0,0.000199,2]
[359741026,1746292246416,-208.37621014,0.000199,2]
[359741027,1746292246425,-275.45795137,0.000199,2]
[359741028,1746292246435,-1000.0,0.000199,2]
[359741029,1746292246445,-1274.71044628,0.000199,2]
[359741030,1746292246457,-294.4909835,0.000199,2]
[359741031,1746292246466,-150.0,0.00019902,2]
[359741032,1746292246476,-150.0,0.00019926,2]
[359741033,1746292246488,-150.0,0.00019926,2]
[359741034,1746292246497,-2805.386,0.00019927,2]
[359741035,1746292246506,-168.088,0.00019927,2]
[359741036,1746292246515,-150.0,0.00019929,2]
[359741037,1746292246525,-150.0,0.00019936,2]
[359741038,1746292246534,-150.0,0.00019941,2]
[359741039,1746292246543,-1000.0,0.00019943,2]
[359741040,1746292246552,-150.0,0.00019946,2]
[359741041,1746292246562,-152.932,0.00019951,2]
[359741042,1746292246571,-267.942,0.00019951,2]
[359741043,1746292246581,-883.477,0.00019951,2]
[359741044,1746292246590,-878.0,0.00019951,2]
[359741045,1746292246599,-6756.0,0.00019951,2]
[359741046,1746292246609,-4008.0,0.00019951,2]
[359741047,1746292246618,-1000.0,0.00019953,2]
[359741048,1746292246627,-150.0,0.00019954,2]
[359741049,1746292246636,-150.0,0.00019959,2]
[359741050,1746292246645,-150.0,0.00019964,2]
[359741051,1746292246654,-150.0,0.00019965,2]
[359741053,1746292246663,-300.0,0.00019973,2]
[359741055,1746292246672,-150.0,0.00019975,2]
[359741057,1746292246681,-168.91563715,0.00019976,2]
[359741059,1746292246692,-150.0,0.00019984,2]
[359741061,1746292246702,-1238.0,0.00019986,2]
[359741063,1746292246711,-150.0,0.00019986,2]
[359741065,1746292246719,-21087.9526244,0.00019986,2]
[359741066,1746292246729,-191096.12544903,0.00019986,2]
[359741068,1746292247037,-283.37740853,0.00019986,2]
[359741069,1746292247057,-536.7293625,0.00019986,2]
[359741070,1746292247073,-480.95,0.00019986,2]
[359741071,1746292247084,-1711.199059,0.00019986,2]
[359741072,1746292247248,-64203.90660614,0.00019986,2]
[359741073,1746292247258,-6379.2662387,0.00019986,2]
[359741074,1746292247267,-168.91563715,0.0001999,2]
[359741075,1746292247277,-150.0,0.00019995,2]
[359741076,1746292247286,-150.0,0.00019995,2]
[359741077,1746292247295,-150.0,0.00019997,2]
[359741078,1746292247305,-185.73472211,0.00019999,2]
[359741079,1746292247314,-190.11370628,0.00019999,2]
[359741080,1746292247324,-166.27170189,0.00019999,2]
[359741081,1746292247333,-500.0,0.00019999,2]
[359741082,1746292247342,-363.2940279,0.00019999,2]
[359741083,1746292247352,-500.0,0.00019999,2]
[359741084,1746292247362,-500.0,0.00019999,2]
[359741085,1746292247371,-500.0,0.00019999,2]
[359741086,1746292247380,-500.0,0.00019999,2]
[359741087,1746292247391,-600.0,0.00019999,2]
[359741088,1746292247402,-450.0,0.00019999,2]
[359741089,1746292247411,-649.04940592,0.00019999,2]
[359741090,1746292247421,-500.0,0.00019999,2]
[359741091,1746292247431,-500.0,0.00019999,2]
[359741092,1746292247443,-500.0,0.00019999,2]
[359741093,1746292247454,-300.0,0.00019999,2]
[359741094,1746292247463,-300.0,0.00019999,2]
[359741095,1746292247473,-300.0,0.00019999,2]
[359741096,1746292247484,-500.0,0.00019999,2]
[359741097,1746292247494,-1700.0,0.00019999,2]
[359741098,1746292247504,-357.58,0.00019999,2]
[359741099,1746292247513,-1042.98350735,0.0002,2]
[359741100,1746292247522,-14647.13194949,0.0002,2]
[359741101,1746292247806,-1041.98058239,0.00019857,2]
[359741102,1746292247817,-29918.57084936,0.0002,2]
[359741103,1746292247828,-4049.9212377,0.0002,2]
[359741104,1746292247849,-1237958.94997835,0.0002,2]
[359741105,1746292247859,-2147516.23760768,0.0002,2]
[359741106,1746292247871,-302298.18942835,0.0002,2]
[359741107,1746292247887,-4032.71134052,0.0002,2]
[359741108,1746292247898,-2306.44527747,0.0002,2]
[359741109,1746292247911,-1000.0,0.0002,2]
[359741110,1746292247923,-581.95943024,0.0002,2]
[359741111,1746292247946,-653.659,0.00019951,2]
[359741112,1746292247955,-356.35367846,0.0002,2]
[359741113,1746292247967,-42437.73812425,0.0002,2]
[359741114,1746292247978,-6167.3096582,0.0002,2]
[359741115,1746292247990,-6061.59731699,0.0002,2]
[359741116,1746292248001,-10083.92777197,0.0002,2]
[359741117,1746292248646,-450.0,0.00019612,2]
[359741118,1746292248658,-88.91887643,0.00019612,2]
[359741119,1746292248670,-277.94997885,0.00019612,2]
[359741120,1746292248688,-109.46536133,0.00019612,2]
[359741121,1746292248704,-441.22473566,0.00019612,2]
[359741122,1746292248717,-32.83824275,0.00019612,2]
[359741123,1746292248728,-450.0,0.00019886,2]
[359741124,1746292248739,-168.51933653,0.00019886,2]
[359741125,1746292248764,-450.0,0.00019612,2]
[359741126,1746292248775,-281.48066347,0.00019886,2]
[359741127,1746292248785,-450.0,0.00019886,2]
[359741128,1746292248795,-742.51933653,0.000199,2]
[359741129,1746292248813,-480.74,0.00019886,2]
[359741130,1746292248823,-35.935,0.000199,2]
[359741131,1746292248834,-263.52624586,0.000199,2]
[359741132,1746292248844,-4549.35975414,0.0002,2]
[359741133,1746292248871,-474.44796838,0.00019612,2]
[359741134,1746292248881,-198.72648699,0.0002,2]
[359741135,1746292248892,-22315.416,0.0002,2]
[359741138,1746292399078,154.55,0.00018814,2]
[359741139,1746292414025,200.0,0.00018809,2]
[359741140,1746292440328,152.2598819,0.0003,30]
[359741141,1746292518998,250.0,0.00017,2]
[359741142,1746292520068,300.0,0.00019,2]
[359741144,1746292547031,23441.01,0.00018794,2]
[359741146,1746292674574,733.84,0.00016872,2]
[359741147,1746292674794,733.84,0.00019136,2]
[359741148,1746292723272,859.24609206,0.00032,120]
[359741149,1746292806575,189.93620248,0.0001949,2]
[359741150,1746292809609,170.66,0.00018701,2]
[359741153,1746292920071,166.78,0.0001502,2]
[359741154,1746292947921,1715.46,0.00018804,2]
[359741155,1746293003990,150.0,0.00018812,2]
[359741160,1746293114461,1817.36,0.00018827,2]
[359741161,1746293147257,238.8,0.00018787,2]
[359741162,1746293166437,1000.0,0.00018772,2]
[359741196,1746293228905,596.55576855,0.00019411,2]
[359741197,1746293229274,596.55576856,0.00019411,2]
[359742225,1746293257317,166.66,0.00019285,2]
[359742234,1746293406058,-207.4,0.000195,2]
[359742235,1746293406080,-42.6,0.000195,2]
[359742236,1746293408256,14977.104884,7.945e-05,2]
[359742250,1746293432494,-207.4,0.000195,2]
[359742251,1746293432504,-200.0,0.000195,2]
[359742252,1746293432513,-39.13104491,0.00019501,2]
[359742253,1746293432524,-160.86895509,0.00019501,2]
[359742254,1746293432533,-882.9428484,0.00019501,2]
[359742255,1746293432549,-356.39,0.00019501,2]
[359742256,1746293432560,-539.48997945,0.00019501,2]
[359742311,1746293438327,-1271.90312658,0.00019501,2]
[359742312,1746293438338,-200.0,0.00019504,2]
[359742313,1746293438348,-300.0,0.00019509,2]
[359742314,1746293438357,-1200.0,0.0001951,2]
[359742315,1746293438366,-300.0,0.0001951,2]
[359742316,1746293438375,-1204.57431442,0.00019511,2]
[359742317,1746293438544,-317.02061334,0.00019511,2]
[359742318,1746293438555,-93858.51519334,0.00019511,2]
[359742319,1746293438564,-5058.2444454,0.00019512,2]
[359742320,1746293438573,-1346.83161325,0.00019512,2]
[359742321,1746293438583,-162.91081726,0.00019512,2]
[359742322,1746293438592,-500.0,0.00019512,2]
[359742323,1746293438601,-5058.24444537,0.00019555,2]
[359742324,1746293438610,-1346.83161316,0.00019555,2]
[359742325,1746293438619,-742.14979478,0.00019569,2]
[359742326,1746293438629,-500.0,0.00019571,2]
[359742327,1746293438638,-388.99653763,0.00019571,2]
[359742328,1746293438648,-551.63297889,0.00019571,2]
[359742329,1746293438659,-154.430521,0.00019572,2]
[359742330,1746293438668,-169.266646,0.00019572,2]
[359742331,1746293438678,-5058.24444537,0.00019598,2]
[359742332,1746293438687,-1346.83161316,0.00019598,2]
[359742333,1746293438696,-151.0,0.000196,2]
[359742334,1746293438706,-151.0,0.000196,2]
[359742335,1746293438715,-668.65185757,0.000196,2]
[359742336,1746293438724,-270.03480273,0.000196,2]
[359742337,1746293438733,-503.13320766,0.00019612,2]
[359742338,1746293438743,-196.29970361,0.00019612,2]
[359742339,1746293438752,-450.0,0.00019612,2]
[359742340,1746293438762,-450.0,0.00019612,2]
[359742342,1746293438772,-500.0,0.00019612,2]
[359742343,1746293438783,-451.40881658,0.00019612,2]
[359742344,1746293438793,-450.0,0.00019612,2]
[359742346,1746293438802,-450.0,0.00019612,2]
[359742347,1746293438811,-450.0,0.00019612,2]
[359742348,1746293438822,-450.0,0.00019612,2]
[359742349,1746293438831,-450.0,0.00019612,2]
[359742350,1746293438840,-450.0,0.00019612,2]
[359742351,1746293438850,-500.0,0.00019612,2]
[359742352,1746293438859,-574.62888116,0.00019612,2]
[359742353,1746293438869,-450.0,0.00019612,2]
[359742354,1746293438878,-450.0,0.00019612,2]
[359742355,1746293438887,-500.0,0.00019612,2]
[359742356,1746293438897,-450.0,0.00019612,2]
[359742357,1746293438906,-450.0,0.00019612,2]
[359742358,1746293438915,-500.0,0.00019612,2]
[359742359,1746293438925,-450.0,0.00019612,2]
[359742360,1746293438934,-450.0,0.00019612,2]
[359742361,1746293438943,-450.0,0.00019612,2]
[359742362,1746293438953,-450.0,0.00019612,2]
[359742363,1746293438962,-450.0,0.00019612,2]
[359742364,1746293438972,-450.0,0.00019612,2]
[359742365,1746293438982,-450.0,0.00019612,2]
[359742366,1746293438991,-363.22128551,0.00019612,2]
[359742367,1746293439000,-450.0,0.00019612,2]
[359742368,1746293439010,-450.0,0.00019612,2]
[359742369,1746293439021,-450.0,0.00019612,2]
[359742370,1746293439030,-450.0,0.00019612,2]
[359742371,1746293439039,-450.0,0.00019612,2]
[359742372,1746293439049,-450.0,0.00019612,2]
[359742373,1746293439058,-450.0,0.00019612,2]
[359742374,1746293439067,-2739.68,0.00019612,2]
[359742375,1746293439076,-500.0,0.00019612,2]
[359742376,1746293439085,-450.0,0.00019612,2]
[359742377,1746293439094,-450.0,0.00019612,2]
[359742378,1746293439103,-608.23,0.00019612,2]
[359742379,1746293439112,-450.0,0.00019612,2]
[359742380,1746293439123,-450.0,0.00019612,2]
[359742381,1746293439132,-500.0,0.00019612,2]
[359742382,1746293439142,-450.0,0.00019612,2]
[359742383,1746293439151,-450.0,0.00019612,2]
[359742384,1746293439160,-450.0,0.00019612,2]
[359742385,1746293439169,-450.0,0.00019612,2]
[359742386,1746293439178,-450.0,0.00019612,2]
[359742387,1746293439187,-450.0,0.00019612,2]
[359742388,1746293439196,-450.0,0.00019612,2]
[359742389,1746293439206,-450.0,0.00019612,2]
[359742390,1746293439215,-486.68,0.00019612,2]
[359742391,1746293439224,-654.04,0.00019612,2]
[359742392,1746293439233,-450.0,0.00019612,2]
[359742393,1746293439243,-450.0,0.00019612,2]
[359742394,1746293439252,-450.0,0.00019612,2]
[359742395,1746293439261,-450.0,0.00019612,2]
[359742396,1746293439270,-450.0,0.00019612,2]
[359742397,1746293439279,-557.94548119,0.00019612,2]
[359742398,1746293439288,-450.0,0.00019612,2]
[359742399,1746293439297,-450.0,0.00019612,2]
[359742400,1746293439307,-450.0,0.00019612,2]
[359742401,1746293439316,-450.0,0.00019612,2]
[359742402,1746293439325,-450.0,0.00019612,2]
[359742403,1746293439335,-981.75,0.00019612,2]
[359742404,1746293439344,-450.0,0.00019612,2]
[359742405,1746293439353,-890.1,0.00019612,2]
[359742406,1746293439363,-450.0,0.00019612,2]
[359742407,1746293439372,-450.0,0.00019612,2]
[359742408,1746293439382,-474.31,0.00019612,2]
[359742409,1746293439391,-542.45,0.00019612,2]
[359742410,1746293439400,-527.6,0.00019612,2]
[359742411,1746293439410,-493.87,0.00019612,2]
[359742412,1746293439419,-222.06695475,0.00019612,2]
[359742413,1746293439429,-450.0,0.00019612,2]
[359742414,1746293439438,-450.0,0.00019612,2]
[359742415,1746293439447,-450.0,0.00019612,2]
[359742416,1746293439457,-450.0,0.00019612,2]
[359742417,1746293439466,-620.11,0.00019612,2]
[359742418,1746293439475,-539.02,0.00019612,2]
[359742419,1746293439484,-450.0,0.00019612,2]
[359742420,1746293439493,-450.0,0.00019612,2]
[359742421,1746293439503,-450.0,0.00019612,2]
[359742422,1746293439512,-450.0,0.00019612,2]
[359742423,1746293439521,-450.0,0.00019612,2]
[359742424,1746293439530,-450.0,0.00019612,2]
[359742425,1746293439683,-462.78,0.00019612,2]
[359742426,1746293439716,-450.0,0.00019612,2]
[359742427,1746293439726,-450.0,0.00019612,2]
[359742428,1746293439736,-714.78,0.00019612,2]
[359742429,1746293439745,-594.1,0.00019612,2]
[359742430,1746293439755,-551.68,0.00019612,2]
[359742431,1746293439765,-450.0,0.00019612,2]
[359742432,1746293439777,-450.0,0.00019612,2]
[359742433,1746293439787,-1454.48,0.00019612,2]
[359742434,1746293439796,-202.6477267,0.00019612,2]
[359742435,1746293439806,-450.0,0.00019612,2]
[359742436,1746293439815,-720.15,0.00019612,2]
[359742437,1746293439825,-450.0,0.00019612,2]
[359742438,1746293439835,-450.0,0.00019612,2]
[359742439,1746293439844,-450.0,0.00019612,2]
[359742440,1746293439854,-450.0,0.00019612,2]
[359742441,1746293439865,-586.21,0.00019612,2]
[359742442,1746293439875,-450.0,0.00019612,2]
[359742443,1746293439884,-710.59,0.00019612,2]
[359742444,1746293439894,-450.0,0.00019612,2]
[359742445,1746293439904,-450.0,0.00019612,2]
[359742446,1746293439913,-450.0,0.00019612,2]
[359742447,1746293439922,-450.0,0.00019612,2]
[359742448,1746293439932,-307.94111165,0.00019612,2]
[359742449,1746293439941,-450.0,0.00019612,2]
[359742450,1746293439951,-450.0,0.00019612,2]
[359742451,1746293439960,-599.03,0.00019612,2]
[359742452,1746293439969,-450.0,0.00019612,2]
[359742453,1746293439978,-450.0,0.00019612,2]
[359742454,1746293439987,-450.0,0.00019612,2]
[359742455,1746293439997,-450.0,0.00019612,2]
[359742456,1746293440007,-450.0,0.00019612,2]
[359742457,1746293440016,-517.96,0.00019612,2]
[359742458,1746293440024,-506.76,0.00019612,2]
[359742459,1746293440032,-450.0,0.00019612,2]
[359742460,1746293440040,-450.0,0.00019612,2]
[359742461,1746293440047,-450.0,0.00019612,2]
[359742462,1746293440054,-450.0,0.00019612,2]
[359742463,1746293440062,-450.0,0.00019612,2]
[359742464,1746293440073,-450.0,0.00019612,2]
[359742465,1746293440083,-450.0,0.00019612,2]
[359742466,1746293440092,-500.0,0.00019612,2]
[359742467,1746293440101,-450.0,0.00019612,2]
[359742468,1746293440111,-450.0,0.00019612,2]
[359742469,1746293440120,-450.0,0.00019612,2]
[359742470,1746293440130,-561.38599026,0.00019612,2]
[359742471,1746293440139,-450.0,0.00019612,2]
[359742472,1746293440148,-450.0,0.00019612,2]
[359742473,1746293440158,-450.0,0.00019612,2]
[359742474,1746293440166,-519.47554658,0.00019612,2]
[359742475,1746293440175,-450.0,0.00019612,2]
[359742476,1746293440184,-450.0,0.00019612,2]
[359742477,1746293440193,-511.54468994,0.00019612,2]
[359742478,1746293440205,-592.54,0.00019612,2]
[359742479,1746293440214,-450.0,0.00019612,2]
[359742480,1746293440223,-450.0,0.00019612,2]
[359742481,1746293440232,-450.0,0.00019612,2]
[359742482,1746293440242,-450.0,0.00019612,2]
[359742483,1746293440251,-450.0,0.00019612,2]
[359742484,1746293440261,-915.36,0.00019612,2]
[359742485,1746293440271,-925.09,0.00019612,2]
[359742486,1746293440280,-766.09,0.00019612,2]
[359742487,1746293440290,-450.0,0.00019612,2]
[359742488,1746293440299,-450.0,0.00019612,2]
[359742489,1746293440308,-450.0,0.00019612,2]
[359742490,1746293440317,-450.0,0.00019612,2]
[359742491,1746293440326,-450.0,0.00019612,2]
[359742492,1746293440336,-1148.04,0.00019612,2]
[359742494,1746293440345,-450.0,0.00019612,2]
[359742495,1746293440354,-450.0,0.00019612,2]